[Event "Budapest Spring Festival 2019"]
[Site "Budapest"]
[Date "2019.04.09"]
[Round "1.8"]
[White "Balint, Vilmos"]
[Black "Gopal G.N."]
[Result "0-1"]
[ECO "A04"]
[WhiteElo "2301"]
[BlackElo "2589"]
[Annotator "RC"]
[PlyCount "62"]
[EventDate "2019.04.09"]
[EventType "swiss"]
[EventCountry "HUN"]
[SourceTitle "playchess.com"]
[Source "ChessBase"]
[SourceQuality "1"]
[TimeControl "40/5400+30:1800+30"]

1. Nf3 {[%emt 0:00:04]} c5 {[%emt 0:00:04]} 2. c4 {[%emt 0:00:15]} Nc6 {[%emt 0:02:54]} 3. g3 {[%emt 0:04:16]} g6 {[%emt 0:00:26]} 4. Bg2 {[%emt 0:01:07]} Bg7 {[%emt 0:00:05]} 5. O-O {[%emt 0:00:06]} d6 {[%emt 0:04:23]} 6. Nc3 {[%emt 0:02:59]} e6 {[%emt 0:00:08]} 7. a3 {[%emt 0:05:07]} Nge7 {[%emt 0:01:06]} 8. b4 {[%emt 0:01:08]} O-O {[%emt 0:15:27]} 9. Rb1 {[%emt 0:07:18]} b6 {[%emt 0:00:42]} 10. Na4 {[%emt 0:12:57]} Rb8 {[%emt 0:05:10]} 11. d3 {[%emt 0:02:57]} Bb7 {[%emt 0:01:44]} 12. e3 {[%emt 0:06:51]} Qd7 {[%emt 0:14:55]} 13. Qc2 {[%emt 0:02:57]} f5 {[%emt 0:10:54]} 14. Ng5 {[%emt 0:11:38]} h6 {[%emt 0:02:54]} 15. Nf3 {[%emt 0:03:20]} e5 {[%emt 0:01:40]} 16. Nc3 {[%emt 0:03:23]} g5 {[%emt 0:04:52]} 17. Ne1 {[%emt 0:07:37]} Kh8 {[%emt 0:08:00]} 18. b5 {[%emt 0:04:34]} Nd8 {[%emt 0:01:34]} 19. Ne2 {[%emt 0:03:51]} Ne6 {[%emt 0:02:40]} 20. f4 {[%emt 0:00:52]} exf4 {[%emt 0:04:32]} 21. exf4 {[%emt 0:01:16]} Ng6 {[%emt 0:01:01]} 22. fxg5 {[%emt 0:02:00]} hxg5 {[%emt 0:00:06]} 23. Bb2 {[%emt 0:01:49]} Rbe8 {[%emt 0:00:30]} 24. d4 {[%emt 0:02:37]} Bxg2 {[%emt 0:09:44]} 25. Nxg2 {[%emt 0:00:29]} Nxd4 {[%emt 0:00:15]} 26. Nxd4 {[%emt 0:00:04]} cxd4 {[%emt 0:00:07]} 27. Rbd1 {[%emt 0:00:55]} Re4 {[%emt 0:00:49]} 28. Rd2 {[%emt 0:00:17]} Qe6 {[%emt 0:04:19]} 29. Qd1 {[%emt 0:00:34]} f4 {[%emt 0:00:34]} 30. Qh5+ {[%emt 0:00:57]} Kg8 {[%emt 0:00:03]} 31. Qxg5 {[%emt 0:00:07]} Re5 {[%emt 0:01:12]} 0-1

[Event "Budapest Spring Festival 2019"]
[Site "Budapest"]
[Date "2019.04.09"]
[Round "1.10"]
[White "Lyell, Mark"]
[Black "Santos Latasa, Jaime"]
[Result "1/2-1/2"]
[ECO "B24"]
[WhiteElo "2298"]
[BlackElo "2585"]
[Annotator "ChessBase"]
[PlyCount "113"]
[EventDate "2019.04.09"]
[EventType "swiss"]
[EventCountry "HUN"]
[SourceTitle "playchess.com"]
[Source "ChessBase"]
[SourceQuality "1"]
[TimeControl "40/5400+30:1800+30"]

1. e4 {[%emt 0:00:04]} c5 {[%emt 0:00:11]} 2. Nc3 {[%emt 0:00:45]} Nc6 {[%emt 0:00:11]} 3. Bb5 {[%emt 0:00:45]} Nd4 {[%emt 0:00:16]} 4. Bc4 {[%emt 0:00:36]} a6 {[%emt 0:00:15]} 5. d3 {[%emt 0:00:49]} e6 {[%emt 0:01:35]} 6. Nge2 {[%emt 0:00:24]} b5 {[%emt 0:00:29]} 7. Bb3 {[%emt 0:00:12]} Nxb3 {[%emt 0:00:35]} 8. axb3 {[%emt 0:00:06]} Bb7 {[%emt 0:00:21]} 9. O-O {[%emt 0:00:42]} Nf6 {[%emt 0:01:11]} 10. f4 {[%emt 0:01:57]} d5 {[%emt 0:00:11]} 11. e5 {[%emt 0:00:55]} d4 {[%emt 0:03:43]} 12. exf6 {[%emt 0:00:28]} dxc3 {[%emt 0:00:19]} 13. f5 {[%emt 0:01:15]} Qxf6 {[%emt 0:10:34]} 14. fxe6 {[%emt 0:00:38]} Qxe6 {[%emt 0:00:14]} 15. Nf4 {[%emt 0:07:26]} Qf6 {[%emt 0:04:18]} 16. bxc3 {[%emt 0:11:10]} Bd6 {[%emt 0:09:55]} 17. Qe2+ {[%emt 0:18:36]} Qe7 {[%emt 0:01:07]} 18. Qxe7+ {[%emt 0:02:49]} Bxe7 {[%emt 0:00:53]} 19. Bb2 {[%emt 0:00:27]} f6 {[%emt 0:01:17]} 20. c4 {[%emt 0:01:26]} Kf7 {[%emt 0:00:24]} 21. Nd5 {[%emt 0:02:13]} Bxd5 {[%emt 0:02:03]} 22. cxd5 {[%emt 0:00:09]} Rhb8 {[%emt 0:02:45]} 23. Be5 {[%emt 0:04:14]} Rb7 {[%emt 0:00:03]} 24. c4 {[%emt 0:01:51]} a5 {[%emt 0:00:21]} 25. Bg3 {[%emt 0:06:58]} bxc4 {[%emt 0:03:23]} 26. bxc4 {[%emt 0:00:12]} Rb3 {[%emt 0:00:15]} 27. Rfb1 {[%emt 0:04:39]} Rxb1+ {[%emt 0:01:06]} 28. Rxb1 {[%emt 0:00:06]} a4 {[%emt 0:00:06]} 29. Kf1 {[%emt 0:09:31]} a3 {[%emt 0:03:23]} 30. Ke2 {[%emt 0:00:42]} a2 {[%emt 0:01:27]} 31. Ra1 {[%emt 0:00:06]} f5 {[%emt 0:00:21]} 32. Be5 {[%emt 0:00:11]} Bf6 {[%emt 0:00:05]} 33. Bxf6 {[%emt 0:03:19]} Kxf6 {[%emt 0:00:11]} 34. Kd2 {[%emt 0:08:59]} Ke5 {[%emt 0:06:02]} 35. Kc3 {[%emt 0:04:34]} Ra3+ {[%emt 0:00:23]} 36. Kb2 {[%emt 0:00:31]} Rxd3 {[%emt 0:00:06]} 37. Rxa2 Kd4 {[%emt 0:01:18]} 38. Kc2 {[%emt 0:06:15]} Rc3+ {[%emt 0:00:50]} 39. Kd1 {[%emt 0:01:25]} Ke5 {[%emt 0:00:25]} 40. Rc2 {[%emt 0:00:00]} Rb3 {[%emt 0:00:00]} 41. Re2+ {[%emt 0:06:09]} Kd4 {[%emt 0:03:03]} 42. d6 {[%emt 0:01:19]} Rb8 {[%emt 0:00:16]} 43. d7 {[%emt 0:02:04]} Rd8 {[%emt 0:00:11]} 44. Re7 {[%emt 0:00:09]} g6 {[%emt 0:00:57]} 45. Rxh7 {[%emt 0:00:38]} Kxc4 {[%emt 0:00:06]} 46. Kc2 {[%emt 0:00:55]} Kd4 {[%emt 0:01:22]} 47. h4 {[%emt 0:01:32]} Ke5 {[%emt 0:02:03]} 48. Kc3 {[%emt 0:02:16]} Ke6 {[%emt 0:00:12]} 49. Kc4 {[%emt 0:05:12]} Rxd7 {[%emt 0:00:17]} 50. Rxd7 {[%emt 0:00:09]} Kxd7 {[%emt 0:00:04]} 51. Kxc5 {[%emt 0:00:37]} Ke6 {[%emt 0:00:12]} 52. Kd4 {[%emt 0:00:20]} Kf6 {[%emt 0:00:22]} 53. Kd5 {[%emt 0:02:39]} g5 {[%emt 0:00:31]} 54. hxg5+ {[%emt 0:00:32]} Kxg5 {[%emt 0:00:09]} 55. Ke5 {[%emt 0:00:49]} Kg4 {[%emt 0:00:06]} 56. g3 {[%emt 0:01:26]} Kxg3 {[%emt 0:00:42]} 57. Kxf5 1/2-1/2

[Event "Budapest Spring Festival 2019"]
[Site "Budapest"]
[Date "2019.04.09"]
[Round "1.12"]
[White "Bach, Matthias"]
[Black "Savchenko, Boris"]
[Result "0-1"]
[ECO "A69"]
[WhiteElo "2297"]
[BlackElo "2575"]
[Annotator "ChessBase"]
[PlyCount "62"]
[EventDate "2019.04.09"]
[EventType "swiss"]
[EventCountry "HUN"]
[SourceTitle "playchess.com"]
[Source "ChessBase"]
[SourceQuality "1"]
[TimeControl "40/5400+30:1800+30"]

1. d4 {[%emt 0:00:03]} Nf6 {[%emt 0:00:30]} 2. c4 {[%emt 0:00:06]} e6 {[%emt 0:02:05]} 3. Nc3 {[%emt 0:00:07]} c5 {[%emt 0:00:07]} 4. d5 {[%emt 0:00:05]} exd5 {[%emt 0:00:06]} 5. cxd5 {[%emt 0:00:04]} g6 {[%emt 0:00:09]} 6. e4 {[%emt 0:00:07]} d6 {[%emt 0:00:07]} 7. f4 {[%emt 0:00:04]} Bg7 {[%emt 0:00:09]} 8. Nf3 {[%emt 0:00:09]} O-O {[%emt 0:00:10]} 9. Be2 {[%emt 0:00:05]} Re8 {[%emt 0:08:39]} 10. e5 {[%emt 0:01:09]} Nfd7 {[%emt 0:00:13]} 11. e6 {[%emt 0:03:01]} fxe6 {[%emt 0:00:10]} 12. O-O {[%emt 0:00:21]} Nf8 {[%emt 0:08:57]} 13. Bc4 {[%emt 0:03:51]} h6 {[%emt 0:05:20]} 14. Re1 {[%emt 0:11:16]} Na6 {[%emt 0:02:05]} 15. Be3 {[%emt 0:04:34]} Nc7 {[%emt 0:01:56]} 16. Bf2 {[%emt 0:10:02]} exd5 {[%emt 0:08:52]} 17. Bh4 {[%emt 0:10:57]} Rxe1+ {[%emt 0:00:45]} 18. Qxe1 {[%emt 0:00:25]} Bxc3 {[%emt 0:00:12]} 19. Qxc3 {[%emt 0:03:19]} Qe8 {[%emt 0:01:33]} 20. Re1 {[%emt 0:18:30]} Be6 {[%emt 0:00:21]} 21. Bd3 {[%emt 0:00:32]} Qf7 {[%emt 0:01:49]} 22. f5 {[%emt 0:00:13]} gxf5 {[%emt 0:00:12]} 23. Qd2 {[%emt 0:01:30]} f4 {[%emt 0:01:00]} 24. g3 {[%emt 0:01:04]} Re8 {[%emt 0:02:11]} 25. gxf4 {[%emt 0:00:42]} Bf5 {[%emt 0:00:28]} 26. Bxf5 {[%emt 0:09:01]} Qxf5 {[%emt 0:01:30]} 27. Be7 {[%emt 0:00:12]} Kf7 {[%emt 0:01:38]} 28. Bxd6 {[%emt 0:01:23]} Qg6+ {[%emt 0:00:14]} 29. Ng5+ {[%emt 0:01:01]} hxg5 {[%emt 0:00:07]} 30. Bxc7 {[%emt 0:00:25]} Rxe1+ {[%emt 0:00:08]} 31. Qxe1 {[%emt 0:00:33]} gxf4+ {[%emt 0:00:05]} 0-1

[Event "Budapest Spring Festival 2019"]
[Site "Budapest"]
[Date "2019.04.09"]
[Round "1.15"]
[White "Stupak, Kirill"]
[Black "Kathmale, Sameer"]
[Result "1-0"]
[ECO "A45"]
[WhiteElo "2547"]
[BlackElo "2279"]
[Annotator "ChessBase"]
[PlyCount "45"]
[EventDate "2019.04.09"]
[EventType "swiss"]
[EventCountry "HUN"]
[SourceTitle "playchess.com"]
[Source "ChessBase"]
[SourceQuality "1"]
[TimeControl "40/5400+30:1800+30"]

1. d4 {[%emt 0:11:41]} Nf6 {[%emt 0:00:45]} 2. g3 {[%emt 0:00:07]} g6 {[%emt 0:01:28]} 3. Bg2 {[%emt 0:00:24]} c5 {[%emt 0:00:07]} 4. Nf3 {[%emt 0:01:25]} Bg7 {[%emt 0:01:11]} 5. O-O {[%emt 0:00:20]} cxd4 {[%emt 0:06:09]} 6. Nxd4 {[%emt 0:00:02]} Nc6 {[%emt 0:00:45]} 7. c4 {[%emt 0:00:04]} O-O {[%emt 0:01:56]} 8. Nc3 {[%emt 0:00:06]} a6 {[%emt 0:04:38]} 9. c5 {[%emt 0:02:17]} Nxd4 {[%emt 0:02:06]} 10. Qxd4 {[%emt 0:02:15]} d6 {[%emt 0:00:08]} 11. cxd6 {[%emt 0:04:23]} Ne8 {[%emt 0:00:14]} 12. Qh4 {[%emt 0:01:11]} Nxd6 {[%emt 0:00:18]} 13. Rd1 {[%emt 0:00:02]} Bd7 {[%emt 0:11:43]} 14. Nd5 {[%emt 0:09:20]} Nf5 {[%emt 0:18:30]} 15. Qb4 {[%emt 0:00:38]} a5 {[%emt 0:17:01]} 16. Qxb7 {[%emt 0:03:48]} Rb8 {[%emt 0:03:19]} 17. Qa7 {[%emt 0:00:39]} Bxb2 {[%emt 0:08:21]} 18. Bxb2 {[%emt 0:01:45]} Rxb2 {[%emt 0:00:02]} 19. Bh3 {[%emt 0:07:00]} Rc2 {[%emt 0:01:02]} 20. e4 {[%emt 0:05:40]} e6 {[%emt 0:01:44]} 21. Qxd7 {[%emt 0:00:07]} exd5 {[%emt 0:00:14]} 22. Qxd8 {[%emt 0:00:02]} Rxd8 {[%emt 0:00:08]} 23. exf5 {[%emt 0:00:02]} 1-0

[Event "Budapest Spring Festival 2019"]
[Site "Budapest"]
[Date "2019.04.09"]
[Round "1.20"]
[White "Terbe, Julianna"]
[Black "Krzyzanowski, Marcin"]
[Result "0-1"]
[ECO "A45"]
[WhiteElo "2265"]
[BlackElo "2509"]
[Annotator "RC"]
[PlyCount "80"]
[EventDate "2019.04.09"]
[EventType "swiss"]
[EventCountry "HUN"]
[SourceTitle "playchess.com"]
[Source "ChessBase"]
[SourceQuality "1"]
[TimeControl "40/5400+30:1800+30"]

1. d4 {[%emt 0:00:03]} Nf6 {[%emt 0:00:07]} 2. Bf4 {[%emt 0:00:06]} g6 {[%emt 0:00:40]} 3. e3 {[%emt 0:00:05]} Bg7 {[%emt 0:00:03]} 4. Nf3 {[%emt 0:00:06]} O-O {[%emt 0:00:16]} 5. Be2 {[%emt 0:00:04]} d6 {[%emt 0:00:10]} 6. h3 {[%emt 0:00:05]} Nbd7 {[%emt 0:00:37]} 7. O-O {[%emt 0:00:07]} Qe8 {[%emt 0:00:01]} 8. c4 {[%emt 0:00:06]} e5 {[%emt 0:00:16]} 9. Bh2 {[%emt 0:00:06]} Ne4 {[%emt 0:00:23]} 10. Qc2 {[%emt 0:01:07]} f5 {[%emt 0:00:34]} 11. Nc3 {[%emt 0:00:10]} Nxc3 {[%emt 0:00:47]} 12. Qxc3 {[%emt 0:01:45]} Qe7 {[%emt 0:02:59]} 13. Rac1 {[%emt 0:04:59]} b6 {[%emt 0:08:04]} 14. Qc2 {[%emt 0:14:17]} a5 {[%emt 0:05:13]} 15. Rfd1 {[%emt 0:10:05]} g5 {[%emt 0:03:50]} 16. Ne1 {[%emt 0:05:48]} e4 {[%emt 0:01:53]} 17. Qd2 {[%emt 0:02:59]} Kh8 {[%emt 0:03:19]} 18. Nc2 {[%emt 0:01:20]} Qf7 {[%emt 0:01:07]} 19. f4 {[%emt 0:04:26]} exf3 {[%emt 0:05:42]} 20. Bxf3 {[%emt 0:00:33]} Rb8 {[%emt 0:00:11]} 21. Na3 {[%emt 0:05:19]} Nf6 {[%emt 0:08:50]} 22. Nb5 {[%emt 0:02:12]} g4 {[%emt 0:11:25]} 23. hxg4 {[%emt 0:00:33]} fxg4 {[%emt 0:00:08]} 24. Bd5 {[%emt 0:02:06]} Qd7 {[%emt 0:08:23]} 25. e4 {[%emt 0:08:13]} Re8 {[%emt 0:09:05]} 26. Qd3 {[%emt 0:01:17]} Ba6 {[%emt 0:01:29]} 27. Na7 {[%emt 0:08:01]} Nxd5 {[%emt 0:04:44]} 28. exd5 {[%emt 0:00:07]} Bh6 {[%emt 0:00:03]} 29. Nc6 {[%emt 0:04:25]} Ra8 {[%emt 0:00:46]} 30. Rc3 {[%emt 0:02:08]} Re3 {[%emt 0:04:57]} 31. Qd2 {[%emt 0:00:43]} Rh3 {[%emt 0:04:49]} 32. Bf4 {[%emt 0:03:53]} Bxf4 {[%emt 0:00:05]} 33. Qxf4 {[%emt 0:00:04]} Rxc3 {[%emt 0:00:04]} 34. bxc3 {[%emt 0:00:04]} Bxc4 {[%emt 0:08:32]} 35. Re1 {[%emt 0:02:11]} Qg7 {[%emt 0:00:57]} 36. Re7 {[%emt 0:02:17]} Rf8 {[%emt 0:00:15]} 37. Qc1 {[%emt 0:07:18]} Qg6 {[%emt 0:01:39]} 38. Re1 {[%emt 0:00:11]} g3 {[%emt 0:01:07]} 39. Qe3 {[%emt 0:00:57]} Qg4 {[%emt 0:00:49]} 40. Qe6 {[%emt 0:00:00]} Qf4 {[%emt 0:00:00]} 0-1

[Event "Budapest Spring Festival 2019"]
[Site "Budapest"]
[Date "2019.04.09"]
[Round "1.24"]
[White "Gyurkovics, Bence"]
[Black "Galyas, Miklos"]
[Result "1/2-1/2"]
[ECO "A41"]
[WhiteElo "2261"]
[BlackElo "2490"]
[Annotator "ChessBase"]
[PlyCount "80"]
[EventDate "2019.04.09"]
[EventType "swiss"]
[EventCountry "HUN"]
[SourceTitle "playchess.com"]
[Source "ChessBase"]
[SourceQuality "1"]
[TimeControl "40/5400+30:1800+30"]

1. d4 {[%emt 0:00:05]} d6 {[%emt 0:00:11]} 2. c4 {[%emt 0:00:51]} e5 {[%emt 0:00:59]} 3. Nf3 {[%emt 0:03:27]} e4 {[%emt 0:00:09]} 4. Ng5 {[%emt 0:00:23]} f5 {[%emt 0:00:14]} 5. Nc3 {[%emt 0:03:04]} c6 {[%emt 0:00:40]} 6. g3 {[%emt 0:02:31]} Be7 {[%emt 0:00:58]} 7. h4 {[%emt 0:06:43]} Nf6 {[%emt 0:00:57]} 8. Nh3 {[%emt 0:03:25]} O-O {[%emt 0:00:25]} 9. Nf4 {[%emt 0:00:37]} Na6 {[%emt 0:01:18]} 10. e3 {[%emt 0:05:07]} Nc7 {[%emt 0:02:13]} 11. b3 {[%emt 0:03:24]} d5 {[%emt 0:07:31]} 12. Bb2 {[%emt 0:03:35]} b5 {[%emt 0:08:41]} 13. Be2 {[%emt 0:10:38]} Rb8 {[%emt 0:04:24]} 14. Qc2 {[%emt 0:06:05]} bxc4 {[%emt 0:04:26]} 15. bxc4 {[%emt 0:00:24]} Ne6 {[%emt 0:00:48]} 16. Nxe6 {[%emt 0:08:48]} Bxe6 {[%emt 0:00:29]} 17. c5 {[%emt 0:01:01]} Ng4 {[%emt 0:05:06]} 18. Rb1 {[%emt 0:05:20]} f4 {[%emt 0:07:42]} 19. gxf4 {[%emt 0:14:07]} Bxh4 {[%emt 0:00:54]} 20. Nd1 {[%emt 0:02:24]} Nxe3 {[%emt 0:09:15]} 21. Nxe3 {[%emt 0:01:08]} Rxf4 {[%emt 0:00:07]} 22. Bc1 {[%emt 0:03:58]} Bxf2+ {[%emt 0:11:18]} 23. Kd1 {[%emt 0:00:10]} Rf8 {[%emt 0:01:09]} 24. Rxb8 {[%emt 0:02:10]} Qxb8 {[%emt 0:01:38]} 25. Qa4 {[%emt 0:02:33]} Qc7 {[%emt 0:03:54]} 26. Ng4 {[%emt 0:01:40]} Bxg4 {[%emt 0:10:14]} 27. Bxg4 {[%emt 0:00:02]} Qg3 {[%emt 0:00:58]} 28. Be2 {[%emt 0:00:49]} Qc3 {[%emt 0:00:39]} 29. Qxc6 {[%emt 0:01:34]} Qxd4+ {[%emt 0:00:27]} 30. Kc2 {[%emt 0:00:38]} Qxc5+ {[%emt 0:02:39]} 31. Qxc5 {[%emt 0:00:05]} Bxc5 {[%emt 0:00:07]} 32. Rh5 {[%emt 0:02:13]} Rc8 {[%emt 0:04:19]} 33. Bg4 {[%emt 0:01:31]} Rc7 {[%emt 0:02:22]} 34. Be6+ {[%emt 0:01:04]} Kf8 {[%emt 0:00:15]} 35. Kd1 {[%emt 0:00:57]} d4 {[%emt 0:01:49]} 36. Rxc5 {[%emt 0:00:35]} Rxc5 {[%emt 0:00:05]} 37. Ba3 {[%emt 0:00:03]} Ke7 {[%emt 0:00:05]} 38. Bxc5+ {[%emt 0:00:30]} Kxe6 {[%emt 0:00:04]} 39. Bxd4 {[%emt 0:00:06]} g5 {[%emt 0:00:24]} 40. Bxa7 {[%emt 0:00:00]} Kd5 {[%emt 0:00:00]} 1/2-1/2

[Event "Budapest Spring Festival 2019"]
[Site "Budapest"]
[Date "2019.04.09"]
[Round "1.27"]
[White "Lizak, Peter"]
[Black "Louis, Thibault"]
[Result "1-0"]
[ECO "A45"]
[WhiteElo "2472"]
[BlackElo "2251"]
[Annotator "ChessBase"]
[PlyCount "53"]
[EventDate "2019.04.09"]
[EventType "swiss"]
[EventCountry "HUN"]
[SourceTitle "playchess.com"]
[Source "ChessBase"]
[SourceQuality "1"]
[TimeControl "40/5400+30:1800+30"]

1. d4 {[%emt 0:00:03]} Nf6 {[%emt 0:00:11]} 2. Nc3 {[%emt 0:00:07]} d5 {[%emt 0:00:54]} 3. Bf4 {[%emt 0:00:06]} e6 {[%emt 0:02:00]} 4. Nb5 {[%emt 0:00:07]} Na6 {[%emt 0:02:28]} 5. a3 {[%emt 0:00:07]} c6 {[%emt 0:09:26]} 6. Nc3 {[%emt 0:00:09]} Be7 {[%emt 0:02:29]} 7. e3 {[%emt 0:01:08]} O-O {[%emt 0:02:21]} 8. h4 {[%emt 0:02:35]} c5 {[%emt 0:03:31]} 9. Nf3 {[%emt 0:00:34]} Bd7 {[%emt 0:06:34]} 10. Ne5 {[%emt 0:01:03]} Rc8 {[%emt 0:02:59]} 11. g4 {[%emt 0:08:22]} Ne8 {[%emt 0:10:18]} 12. g5 {[%emt 0:13:05]} Nd6 {[%emt 0:04:09]} 13. Bh3 {[%emt 0:09:09]} cxd4 {[%emt 0:08:04]} 14. exd4 {[%emt 0:04:43]} Nc4 {[%emt 0:00:30]} 15. Nxc4 {[%emt 0:05:50]} Rxc4 {[%emt 0:01:29]} 16. Bf1 {[%emt 0:02:10]} Rc8 {[%emt 0:02:44]} 17. Bd3 {[%emt 0:00:21]} Qb6 {[%emt 0:03:51]} 18. Rb1 {[%emt 0:01:05]} Nc7 {[%emt 0:01:14]} 19. Be5 {[%emt 0:07:15]} Bd6 {[%emt 0:07:25]} 20. Bxh7+ {[%emt 0:06:18]} Kxh7 {[%emt 0:00:04]} 21. Qh5+ {[%emt 0:00:11]} Kg8 {[%emt 0:00:04]} 22. Bxg7 {[%emt 0:00:10]} f5 {[%emt 0:02:27]} 23. Bf6 {[%emt 0:03:10]} Rxf6 {[%emt 0:06:02]} 24. gxf6 {[%emt 0:00:07]} Kf8 {[%emt 0:00:20]} 25. Rg1 {[%emt 0:01:14]} Ne8 {[%emt 0:00:18]} 26. Qh6+ {[%emt 0:00:26]} Kf7 {[%emt 0:00:08]} 27. Qg6+ {[%emt 0:00:05]} 1-0

[Event "Budapest Spring Festival 2019"]
[Site "Budapest"]
[Date "2019.04.09"]
[Round "1.33"]
[White "Asadli, Vugar"]
[Black "Borsos, Bogdan"]
[Result "1-0"]
[ECO "C65"]
[WhiteElo "2454"]
[BlackElo "2234"]
[Annotator "ChessBase"]
[PlyCount "65"]
[EventDate "2019.04.09"]
[EventType "swiss"]
[EventCountry "HUN"]
[SourceTitle "playchess.com"]
[Source "ChessBase"]
[SourceQuality "1"]
[TimeControl "40/5400+30:1800+30"]

1. e4 {[%emt 0:00:03]} e5 {[%emt 0:01:25]} 2. Nf3 {[%emt 0:00:48]} Nc6 {[%emt 0:00:06]} 3. Bb5 {[%emt 0:00:04]} Nf6 {[%emt 0:00:06]} 4. d3 {[%emt 0:01:43]} Bc5 {[%emt 0:00:15]} 5. O-O {[%emt 0:00:47]} Nd4 {[%emt 0:00:22]} 6. Nxd4 {[%emt 0:01:03]} Bxd4 {[%emt 0:00:06]} 7. Nd2 {[%emt 0:01:12]} c6 {[%emt 0:00:16]} 8. Ba4 {[%emt 0:02:37]} Bb6 {[%emt 0:01:26]} 9. Bb3 {[%emt 0:04:33]} O-O {[%emt 0:01:24]} 10. Nc4 {[%emt 0:00:12]} Bc7 {[%emt 0:00:21]} 11. Bg5 {[%emt 0:01:14]} h6 {[%emt 0:00:16]} 12. Bh4 {[%emt 0:00:18]} g5 {[%emt 0:04:11]} 13. Bg3 {[%emt 0:01:02]} d6 {[%emt 0:00:06]} 14. c3 {[%emt 0:07:54]} Kg7 {[%emt 0:03:20]} 15. Bc2 {[%emt 0:09:29]} Bg4 {[%emt 0:03:09]} 16. Qd2 {[%emt 0:08:46]} Nh5 {[%emt 0:01:31]} 17. d4 {[%emt 0:08:13]} Qe7 {[%emt 0:00:30]} 18. Rfe1 {[%emt 0:08:01]} Qf6 {[%emt 0:07:24]} 19. Bd1 {[%emt 0:05:59]} Bxd1 {[%emt 0:00:53]} 20. Raxd1 {[%emt 0:02:03]} Rad8 {[%emt 0:01:08]} 21. Ne3 {[%emt 0:03:50]} Kh8 {[%emt 0:01:53]} 22. Qc2 {[%emt 0:05:08]} Nf4 {[%emt 0:05:28]} 23. Qb3 {[%emt 0:04:10]} Bb6 {[%emt 0:00:37]} 24. Nc4 {[%emt 0:04:32]} Qe6 {[%emt 0:00:38]} 25. Qb4 {[%emt 0:03:08]} c5 {[%emt 0:00:40]} 26. Qb5 {[%emt 0:00:40]} cxd4 {[%emt 0:03:38]} 27. Nxb6 {[%emt 0:00:08]} axb6 {[%emt 0:00:07]} 28. cxd4 {[%emt 0:00:03]} Ng6 {[%emt 0:01:54]} 29. Qxb6 {[%emt 0:01:06]} Rc8 {[%emt 0:06:48]} 30. dxe5 {[%emt 0:01:20]} dxe5 {[%emt 0:00:23]} 31. Rd6 {[%emt 0:00:36]} Qe7 {[%emt 0:01:02]} 32. Red1 {[%emt 0:00:17]} Qc7 {[%emt 0:01:06]} 33. Qxc7 {[%emt 0:00:12]} 1-0

[Event "Budapest Spring Festival 2019"]
[Site "Budapest"]
[Date "2019.04.09"]
[Round "1.39"]
[White "Srinath, Rao S.V."]
[Black "Taranenko, Evgueniy"]
[Result "1-0"]
[ECO "B00"]
[WhiteElo "2416"]
[BlackElo "2212"]
[Annotator "NA"]
[PlyCount "47"]
[EventDate "2019.04.09"]
[EventType "swiss"]
[EventCountry "HUN"]
[SourceTitle "playchess.com"]
[Source "ChessBase"]
[SourceQuality "1"]
[TimeControl "40/5400+30:1800+30"]

1. e4 {[%emt 0:00:17]} Nc6 {[%emt 0:00:05]} 2. Nc3 {[%emt 0:01:43]} e6 {[%emt 0:00:07]} 3. d4 {[%emt 0:00:23]} Bb4 {[%emt 0:00:35]} 4. a3 {[%emt 0:01:39]} Bxc3+ {[%emt 0:00:08]} 5. bxc3 {[%emt 0:00:02]} d6 {[%emt 0:01:12]} 6. Bd3 {[%emt 0:01:18]} e5 {[%emt 0:01:39]} 7. Ne2 {[%emt 0:01:07]} Nge7 {[%emt 0:07:03]} 8. O-O {[%emt 0:01:36]} O-O {[%emt 0:00:18]} 9. f4 {[%emt 0:00:23]} exf4 {[%emt 0:21:48]} 10. Nxf4 {[%emt 0:02:13]} Ng6 {[%emt 0:00:14]} 11. Nxg6 {[%emt 0:02:38]} hxg6 {[%emt 0:00:09]} 12. Qf3 {[%emt 0:00:55]} Qh4 {[%emt 0:13:25]} 13. Rb1 {[%emt 0:00:50]} a6 {[%emt 0:03:48]} 14. Bf4 {[%emt 0:03:00]} Qh5 {[%emt 0:18:37]} 15. Qg3 {[%emt 0:02:35]} b5 {[%emt 0:06:39]} 16. h3 {[%emt 0:00:25]} Na5 {[%emt 0:04:34]} 17. Rf2 {[%emt 0:01:06]} Bb7 {[%emt 0:04:27]} 18. Be2 {[%emt 0:01:37]} Qh7 {[%emt 0:00:01]} 19. e5 {[%emt 0:01:01]} d5 {[%emt 0:03:18]} 20. e6 {[%emt 0:03:35]} Nc4 {[%emt 0:05:17]} 21. Bd3 {[%emt 0:02:01]} f5 {[%emt 0:01:24]} 22. Bg5 {[%emt 0:00:21]} Nxa3 {[%emt 0:02:51]} 23. Ra1 {[%emt 0:02:16]} Nc4 {[%emt 0:00:06]} 24. Rf4 {[%emt 0:00:10]} 1-0

[Event "Budapest Spring Festival 2019"]
[Site "Budapest"]
[Date "2019.04.10"]
[Round "2.3"]
[White "Nguyen, Van Thanh"]
[Black "Erdos, Viktor"]
[Result "1/2-1/2"]
[ECO "A46"]
[WhiteElo "2391"]
[BlackElo "2610"]
[Annotator "RC"]
[PlyCount "49"]
[EventDate "2019.04.09"]
[EventType "swiss"]
[EventCountry "HUN"]
[SourceTitle "playchess.com"]
[Source "ChessBase"]
[SourceQuality "1"]
[TimeControl "40/5400+30:1800+30"]

1. d4 {[%emt 0:00:05]} Nf6 {[%emt 0:07:08]} 2. Nf3 {[%emt 0:00:13]} d5 {[%emt 0:00:06]} 3. c4 {[%emt 0:00:18]} c6 {[%emt 0:00:04]} 4. Qc2 {[%emt 0:00:20]} dxc4 {[%emt 0:00:10]} 5. Qxc4 {[%emt 0:00:13]} Bg4 {[%emt 0:00:13]} 6. Nbd2 {[%emt 0:00:19]} Nbd7 {[%emt 0:00:10]} 7. g3 {[%emt 0:00:18]} e6 {[%emt 0:00:14]} 8. Bg2 {[%emt 0:00:10]} Be7 {[%emt 0:00:11]} 9. O-O {[%emt 0:00:13]} O-O {[%emt 0:00:10]} 10. b3 {[%emt 0:02:06]} Rc8 {[%emt 0:01:19]} 11. Bb2 {[%emt 0:01:42]} b5 {[%emt 0:00:09]} 12. Qc2 {[%emt 0:05:09]} c5 {[%emt 0:00:40]} 13. Rac1 {[%emt 0:02:50]} Qb6 {[%emt 0:02:55]} 14. Qb1 {[%emt 0:04:55]} h6 {[%emt 0:11:23]} 15. Rfe1 {[%emt 0:07:14]} Bf5 {[%emt 0:12:50]} 16. Qa1 {[%emt 0:03:11]} Bh7 {[%emt 0:00:10]} 17. Red1 {[%emt 0:04:32]} Rfd8 {[%emt 0:00:51]} 18. a3 {[%emt 0:02:04]} Bf8 {[%emt 0:06:56]} 19. h3 {[%emt 0:04:43]} a6 {[%emt 0:04:44]} 20. Ne1 {[%emt 0:04:19]} Qb8 {[%emt 0:14:26]} 21. Nef3 {[%emt 0:03:46]} Qb6 {[%emt 0:00:54]} 22. Ne1 {[%emt 0:00:22]} Qb8 {[%emt 0:00:09]} 23. Nef3 {[%emt 0:00:24]} Nd5 {[%emt 0:05:09]} 24. Kh2 {[%emt 0:16:38]} N5f6 {[%emt 0:03:35]} 25. Kg1 1/2-1/2